lending/lending_fUSD_20251106
["ID","MTS","AMOUNT","RATE_DAILY","PERIOD"]
[393315241,1762457437934,-1800.0,0.00017,6]
[393315242,1762457437943,-3311.7456764,0.000171,6]
[393315243,1762457437954,-288.2543236,0.000171,6]
[393315244,1762457437963,-4529.82345901,0.000172,6]
[393315245,1762457437974,-870.17654099,0.000172,6]
[393315246,1762457437983,-286.44,0.000173,2]
[393315247,1762457437992,-415.71,0.000173,2]
[393315248,1762457438002,-7200.0,0.000173,6]
[393315249,1762457438011,-352.6,0.000174,2]
[393315250,1762457438020,-9000.0,0.000174,6]
[393315251,1762457438029,-181.40272834,0.00017411,2]
[393315252,1762457438039,-10657.16410223,0.00017411,2]
[393315253,1762457438050,-182.79134841,0.00017411,2]
[393315254,1762457438060,-10657.16410214,0.00017465,2]
[393315255,1762457438071,-554.0,0.00017487,2]
[393315256,1762457438081,-660.0,0.000175,3]
[393315257,1762457438092,-1000.0,0.000175,2]
[393315258,1762457438102,-415.71,0.000175,2]
[393315260,1762457438111,-415.71,0.000175,2]
[393315262,1762457438121,-500.0,0.000175,2]
[393315264,1762457438131,-23550.0775965,0.000175,2]
[393315266,1762457438140,-1800.0,0.000175,6]
[393315268,1762457438150,-554.0,0.00017501,2]
[393315270,1762457438160,-500.0,0.00017507,2]
[393315272,1762457438169,-154.77872973,0.00017508,2]
[393315274,1762457438179,-201.56854777,0.0001751,2]
[393315276,1762457438188,-514.28691293,0.0001751,2]
[393315278,1762457438199,-500.0,0.0001751,2]
[393315280,1762457438208,-550.62677967,0.0001751,2]
[393315282,1762457438219,-183.69568692,0.0001751,2]
[393315284,1762457438228,-473.15155806,0.0001751,2]
[393315285,1762457438238,-604.87,0.0001751,2]
[393315287,1762457438247,-604.87,0.0001751,2]
[393315289,1762457438256,-420000.0,0.00017511,2]
[393315292,1762457438266,-1000.0,0.00017511,2]
[393315294,1762457438275,-578.40608856,0.0001752,2]
[393315295,1762457438284,-10657.16410214,0.0001752,2]
[393315297,1762457438294,-2999.7108,0.00017528,2]
[393315299,1762457438303,-1000.0,0.00017537,2]
[393315302,1762457438322,-500.0,0.00017573,2]
[393315305,1762457438333,-500.0,0.00017573,2]
[393315307,1762457438343,-500.0,0.00017573,2]
[393315309,1762457438353,-578.40608856,0.00017574,2]
[393315311,1762457438362,-10657.16410214,0.00017574,2]
[393315313,1762457438372,-182.7913484,0.00017574,2]
[393315315,1762457438381,-554.0,0.00017577,2]
[393315317,1762457438391,-5464.0,0.00017586,2]
[393315319,1762457438400,-250.0,0.000176,2]
[393315321,1762457438410,-250.0,0.000176,2]
[393315323,1762457438420,-250.0,0.000176,2]
[393315325,1762457438429,-250.0,0.000176,2]
[393315327,1762457438438,-250.0,0.000176,2]
[393315329,1762457438448,-250.0,0.000176,2]
[393315331,1762457438457,-250.0,0.000176,2]
[393315333,1762457438467,-250.0,0.000176,2]
[393315334,1762457438477,-250.0,0.000176,2]
[393315336,1762457438487,-250.0,0.000176,2]
[393315338,1762457438497,-250.0,0.000176,2]
[393315340,1762457438508,-250.0,0.000176,2]
[393315342,1762457438518,-250.0,0.000176,2]
[393315344,1762457438528,-250.0,0.000176,2]
[393315346,1762457438538,-250.0,0.000176,2]
[393315348,1762457438548,-250.0,0.000176,2]
[393315350,1762457438558,-250.0,0.000176,2]
[393315352,1762457438568,-250.0,0.000176,2]
[393315354,1762457438578,-250.0,0.000176,2]
[393315355,1762457438591,-250.0,0.000176,2]
[393315356,1762457438601,-250.0,0.000176,2]
[393315357,1762457438612,-250.0,0.000176,2]
[393315358,1762457438622,-250.0,0.000176,2]
[393315359,1762457438632,-250.0,0.000176,2]
[393315360,1762457438642,-250.0,0.000176,2]
[393315361,1762457438651,-250.0,0.000176,2]
[393315362,1762457438662,-250.0,0.000176,2]
[393315363,1762457438677,-269.0,0.000176,2]
[393315364,1762457438687,-380.79,0.000176,2]
[393315365,1762457438697,-1800.0,0.000176,6]
[393315366,1762457438707,-500.0,0.00017627,2]
[393315367,1762457438719,-500.0,0.00017627,2]
[393315368,1762457438730,-500.0,0.00017627,2]
[393315369,1762457438741,-578.40608856,0.00017628,2]
[393315370,1762457438751,-10657.16410214,0.00017628,2]
[393315371,1762457438760,-221.80400124,0.00017645,2]
[393315372,1762457438771,-549.16,0.00017647,2]
[393315373,1762457438781,-549.16,0.00017647,2]
[393315374,1762457438791,-549.16,0.00017647,2]
[393315375,1762457438801,-554.0,0.00017669,2]
[393315376,1762457438811,-300.0,0.00017682,2]
[393315377,1762457438821,-150.0,0.00017682,2]
[393315378,1762457438831,-300.0,0.00017682,2]
[393315379,1762457438841,-150.0,0.00017682,2]
[393315380,1762457438851,-578.40608856,0.00017683,2]
[393315381,1762457438861,-10657.16410214,0.00017683,2]
[393315382,1762457438871,-893.73840764,0.00017691,2]
[393315383,1762457438881,-5464.0,0.00017698,2]
[393315384,1762457438891,-1800.0,0.000177,6]
[393315385,1762457438901,-1388.0,0.000177,2]
[393315386,1762457438911,-415.71,0.00017709,2]
[393315387,1762457438920,-415.71,0.00017709,2]
[393315388,1762457438930,-159.51,0.00017709,2]
[393315389,1762457438940,-415.71,0.00017709,2]
[393315390,1762457438950,-175.93,0.00017709,2]
[393315391,1762457438959,-554.0,0.00017721,2]
[393315392,1762457438968,-19999.99,0.00017728,2]
[393315393,1762457438978,-2179.75,0.00017728,2]
[393315394,1762457438988,-6203.02,0.00017728,2]
[393315395,1762457439247,-578.40608856,0.00017737,2]
[393315396,1762457439258,-10657.16410214,0.00017737,2]
[393315397,1762457439268,-182.7913484,0.00017737,2]
[393315398,1762457439278,-554.0,0.0001774,2]
[393315399,1762457439288,-554.0,0.00017747,2]
[393315400,1762457439298,-176.91,0.00017757,2]
[393315401,1762457439308,-405.3,0.00017757,2]
[393315402,1762457439319,-169.04,0.00017757,2]
[393315403,1762457439328,-353.79,0.00017757,2]
[393315404,1762457439339,-169.04,0.00017757,2]
[393315405,1762457439348,-5888.0,0.00017768,2]
[393315406,1762457439358,-500.0,0.0001778,2]
[393315407,1762457439367,-150.0,0.0001778,2]
[393315408,1762457439377,-500.0,0.0001778,2]
[393315409,1762457439386,-150.0,0.0001778,2]
[393315410,1762457439396,-150.0,0.0001778,2]
[393315411,1762457439405,-162.44257324,0.0001778,2]
[393315412,1762457439414,-500.0,0.0001778,2]
[393315413,1762457439424,-150.0,0.0001778,2]
[393315414,1762457439433,-150.0,0.0001778,2]
[393315415,1762457439443,-150.0,0.0001778,2]
[393315416,1762457439453,-150.0,0.0001778,2]
[393315417,1762457439463,-150.0,0.0001778,2]
[393315418,1762457439472,-150.0,0.0001778,2]
[393315419,1762457439481,-150.0,0.0001778,2]
[393315420,1762457439490,-500.0,0.0001778,2]
[393315421,1762457439499,-500.0,0.0001778,2]
[393315422,1762457439509,-578.40608856,0.00017791,2]
[393315423,1762457439518,-10657.16410214,0.00017791,2]
[393315424,1762457439528,-554.0,0.00017794,2]
[393315425,1762457439538,-1000.0,0.000178,2]
[393315426,1762457439548,-1800.0,0.000178,6]
[393315427,1762457439557,-578.40608856,0.00017846,2]
[393315428,1762457439567,-10657.16410214,0.00017846,2]
[393315429,1762457439576,-1889.557,0.00017846,2]
[393315430,1762457439586,-180.027,0.00017846,2]
[393315431,1762457439596,-302.62846637,0.0001785,2]
[393315432,1762457439605,-380.79,0.00017874,2]
[393315433,1762457439615,-302.62846636,0.00017875,2]
[393315434,1762457439625,-170.72806349,0.00017898,2]
[393315435,1762457439635,-604.87,0.00017899,2]
[393315436,1762457439644,-833.43,0.000179,2]
[393315437,1762457439654,-10348.63468337,0.000179,2]
[393315438,1762457439664,-170.72806348,0.000179,2]
[393315439,1762457439676,-578.40608856,0.000179,2]
[393315440,1762457439685,-3243.15393927,0.000179,2]
[393315441,1762457439695,-2008.0,0.000179,6]
[393315442,1762457439704,-181.40272833,0.000179,2]
[393315443,1762457439714,-10657.16410214,0.000179,2]
[393315444,1762457439723,-352.51204801,0.000179,2]
[393315445,1762457439732,-302.62846636,0.000179,2]
[393315446,1762457439743,-150.81255791,0.000179,3]
[393315447,1762457439752,-3332.68235117,0.000179,2]
[393315448,1762457439762,-182.7913484,0.000179,2]
[393315449,1762457439772,-6756.69543,0.0001791,2]
[393315450,1762457439781,-500.0,0.00017917,2]
[393315451,1762457439791,-150.0,0.00017917,2]
[393315452,1762457439801,-500.0,0.00017917,2]
[393315453,1762457439816,-150.0,0.00017917,2]
[393315454,1762457439826,-500.0,0.00017917,2]
[393315455,1762457439835,-150.0,0.00017917,2]
[393315456,1762457439846,-150.0,0.00017917,2]
[393315457,1762457439856,-150.0,0.00017917,2]
[393315458,1762457439866,-500.0,0.00017917,2]
[393315459,1762457439876,-500.0,0.00017917,2]
[393315460,1762457439885,-300.0,0.00017945,2]
[393315461,1762457439895,-21391.82954433,0.00017946,2]
[393315462,1762457439904,-500.0,0.0001795,2]
[393315463,1762457439913,-1596.0,0.00017951,2]
[393315464,1762457439923,-820.0,0.00017951,2]
[393315465,1762457439932,-1273.0,0.00017951,2]
[393315466,1762457439942,-812.0,0.00017951,2]
[393315467,1762457439951,-905.0,0.00017951,2]
[393315468,1762457439960,-1188.0,0.00017951,2]
[393315469,1762457439970,-3423.0,0.00017951,2]
[393315470,1762457439979,-629.503,0.00017951,2]
[393315471,1762457439989,-1153.0,0.00017951,2]
[393315472,1762457439998,-2206.04,0.00017951,2]
[393315473,1762457440008,-6661.309,0.00017951,2]
[393315474,1762457440017,-7589.0,0.00017973,2]
[393315475,1762457440027,-13633.0,0.00017973,2]
[393315476,1762457440036,-2105.0,0.00017973,2]
[393315477,1762457440046,-500.68961362,0.00017973,2]
[393315478,1762457440056,-500.0,0.00017973,2]
[393315479,1762457440066,-324.3529394,0.00017973,2]
[393315480,1762457440075,-500.0,0.00017973,2]
[393315481,1762457440084,-177.37183527,0.00017973,2]
[393315482,1762457440094,-500.0,0.00017973,2]
[393315483,1762457440104,-500.22397222,0.00017973,2]
[393315484,1762457440113,-500.0,0.00017973,2]
[393315485,1762457440122,-500.0,0.00017973,2]
[393315486,1762457440131,-500.0,0.00017973,2]
[393315487,1762457440141,-500.0,0.00017973,2]
[393315488,1762457440150,-503.6822994,0.00017973,2]
[393315489,1762457440159,-500.0,0.00017973,2]
[393315490,1762457440169,-500.0,0.00017973,2]
[393315491,1762457440179,-500.0,0.00017973,2]
[393315492,1762457440189,-500.0,0.00017973,2]
[393315493,1762457440199,-500.29122171,0.00017973,2]
[393315494,1762457440208,-500.59586088,0.00017973,2]
[393315495,1762457440217,-500.19258661,0.00017973,2]
[393315496,1762457440227,-552.80340809,0.00017973,2]
[393315497,1762457440237,-500.0,0.00017973,2]
[393315498,1762457440246,-519.18307987,0.00017973,2]
[393315499,1762457440256,-500.65741845,0.00017973,2]
[393315500,1762457440266,-500.0,0.00017973,2]
[393315502,1762457440275,-164.32088567,0.00017973,2]
[393315503,1762457440284,-662.44870226,0.00017987,2]
[393315504,1762457440293,-662.44870226,0.0001799,2]
[393315505,1762457440302,-662.44870226,0.0001799,2]
[393315506,1762457440312,-604.87,0.00017996,2]
[393315507,1762457440321,-4015.0,0.00017997,2]
[393315508,1762457440331,-825.4315656,0.00017997,2]
[393315509,1762457440342,-243891.0853882,0.00017997,2]
[393315511,1762457440367,-4987.25782081,0.00017997,2]
[393315512,1762457440444,-5000.0,0.00017997,2]
[393315513,1762457440455,-447.15,0.00017997,2]
[393315514,1762457440477,-92513.09424149,0.00017997,2]
[393315515,1762457440486,-604.87,0.00017997,2]
[393315516,1762457440495,-12172.2195756,0.00017998,2]
[393315517,1762457440504,-500.0,0.00017999,2]
[393315518,1762457440513,-500.0,0.00017999,2]
[393315519,1762457440525,-500.0,0.00017999,2]
[393315520,1762457440534,-500.0,0.00017999,2]
[393315521,1762457440544,-500.0,0.00017999,2]
[393315522,1762457440553,-500.0,0.00017999,2]
[393315523,1762457440564,-500.0,0.00017999,2]
[393315524,1762457440573,-500.0,0.00017999,2]
[393315525,1762457440582,-500.0,0.00017999,2]
[393315526,1762457440592,-500.0,0.00017999,2]
[393315527,1762457440601,-500.0,0.00017999,2]
[393315528,1762457440610,-500.0,0.00017999,2]
[393315529,1762457440620,-500.0,0.00017999,2]
[393315530,1762457440629,-500.0,0.00017999,2]
[393315531,1762457440638,-500.0,0.00017999,2]
[393315532,1762457440648,-194.95248761,0.00017999,2]
[393315533,1762457440658,-685.04074978,0.00017999,5]
[393315534,1762457440673,-212.916,0.00017999,2]
[393315535,1762457440684,-500.0,0.00017999,2]
[393315536,1762457440693,-500.0,0.00017999,2]
[393315537,1762457440703,-500.0,0.00017999,2]
[393315538,1762457440712,-500.0,0.00017999,2]
[393315539,1762457440724,-500.0,0.00017999,2]
[393315540,1762457440733,-500.0,0.00017999,2]
[393315541,1762457440743,-580.22,0.00017999,2]
[393315542,1762457440753,-399.17554175,0.00017999,2]
[393315543,1762457440763,-284.48434783,0.00017999,2]
[393315544,1762457440772,-15400.16589434,0.00017999,2]
[393315545,1762457440781,-604.87,0.00017999,2]
[393315546,1762457440791,-604.87,0.00017999,2]
[393315547,1762457440801,-604.87,0.00017999,2]
[393315548,1762457440810,-604.87,0.00017999,2]
[393315549,1762457440820,-604.87,0.00017999,2]
[393315550,1762457440829,-604.87,0.00017999,2]
[393315551,1762457440838,-604.87,0.00017999,2]
[393315552,1762457440849,-604.87,0.00017999,2]
[393315553,1762457440859,-604.87,0.00017999,2]
[393315554,1762457440869,-604.87,0.00017999,2]
[393315555,1762457440878,-604.87,0.00017999,2]
[393315556,1762457440887,-604.87,0.00017999,2]
[393315557,1762457440897,-604.87,0.00017999,2]
[393315558,1762457440906,-604.87,0.00017999,2]
[393315559,1762457440915,-604.87,0.00017999,2]
[393315560,1762457440924,-604.87,0.00017999,2]
[393315561,1762457440933,-604.87,0.00017999,2]
[393315562,1762457440942,-604.87,0.00017999,2]
[393315563,1762457440951,-604.97372178,0.00017999,2]
[393315564,1762457440960,-1079267.8680847,0.00018,2]
[393315565,1762457440972,-861.7705192,0.00018,2]
[393315582,1762457442960,-1333306.70150363,0.00018,2]
[393315583,1762457443056,-4277.12780471,0.00018,2]
[393315597,1762457445945,-33735.44607554,0.00018,2]
[393315602,1762457446001,-9646.21012586,0.00018,2]
[393315604,1762457446196,-559.92386404,0.00018,2]
[393315605,1762457446274,-1736.00000026,0.00017951,2]
[393315606,1762457446285,-596.86146136,0.00017951,2]
[393315624,1762457553616,500.0,0.00038813,120]
[393315630,1762457626977,150.0,0.0001686,120]
[393315632,1762457828104,300.0,0.00038813,30]
[393315636,1762458128423,200.0,0.00038801,30]
[393315660,1762458631972,-895.00486869,0.00016438,2]
[393315661,1762458632043,-1613.9502996,0.00016438,2]
[393315662,1762458632055,-114.34483171,0.00016438,2]
[393315663,1762458632064,-150.0,0.0001686,2]
[393315664,1762458632073,-300.0,0.0001686,2]
[393315665,1762458632083,-208.0,0.0001686,2]
[393315666,1762458632092,-166.66,0.0001692,2]
[393315667,1762458632102,-300.0,0.00016934,2]
[393315668,1762458632111,-300.0,0.00016934,2]
[393315669,1762458632121,-1600.0,0.00017,6]
[393315670,1762458632131,-204.43,0.00017029,2]
[393315671,1762458632144,-500.0,0.00017096,2]
[393315672,1762458632153,-3300.0,0.000171,6]
[393315673,1762458632163,-1200.0,0.00017177,2]
[393315674,1762458632173,-584.0,0.00017178,2]
[393315675,1762458632182,-119.13083143,0.00017197,2]
[393315676,1762458632195,-180.86916857,0.00017197,2]
[393315677,1762458632204,-87.95175575,0.00017198,2]
[393315678,1762458632215,-212.04824425,0.00017198,2]
[393315679,1762458632224,-393.66435146,0.00017199,2]
[393315680,1762458632236,-806.33564854,0.00017199,2]
[393315681,1762458632245,-415.71,0.000172,2]
[393315682,1762458632254,-549.16,0.000172,2]
[393315683,1762458632264,-1098.32,0.000172,2]
[393315684,1762458632273,-246.08578684,0.000172,2]
[393315685,1762458632285,-303.07421316,0.000172,2]
[393315686,1762458632294,-831.42,0.000172,2]
[393315687,1762458632304,-510.12475318,0.000172,6]
[393315688,1762458632315,-387.11639996,0.000172,6]
[393315689,1762458632327,-4002.75884686,0.000172,6]
[393315690,1762458632337,-549.16,0.00017278,2]
[393315691,1762458632347,-6600.0,0.000173,6]
[393315692,1762458632359,-2500.0,0.00017311,2]
[393315693,1762458632368,-590.50730398,0.00017311,2]
[393315694,1762458632378,-187.86737324,0.00017311,2]
[393315695,1762458632388,-1318.14283979,0.00017311,2]
[393315696,1762458632398,-590.50730392,0.00017376,2]
[393315697,1762458632408,-1318.14283976,0.00017376,2]
[393315698,1762458632417,-500.0,0.00017399,2]
[393315699,1762458632427,-500.0,0.00017399,2]
[393315700,1762458632436,-500.0,0.00017399,2]
[393315701,1762458632446,-500.0,0.00017399,2]
[393315702,1762458632456,-500.0,0.00017399,2]
[393315703,1762458632466,-8200.0,0.000174,6]
[393315704,1762458632475,-283.39,0.00017409,2]
[393315705,1762458632484,-300.0,0.00017409,2]
[393315706,1762458632494,-264.5072984,0.0001741,2]
[393315707,1762458632503,-178.19361803,0.0001741,2]
[393315708,1762458632512,-500.0,0.0001741,2]
[393315709,1762458632522,-524.89,0.0001741,2]
[393315710,1762458632535,-500.0,0.0001741,2]
[393315711,1762458632544,-500.0,0.0001741,2]
[393315712,1762458632555,-12908.4014,0.00017411,2]
[393315713,1762458632566,-187117.55549907,0.00017411,2]
[393315714,1762458632577,-2582.67577394,0.00017411,2]
[393315715,1762458632589,-3839.66373871,0.00017411,2]
[393315716,1762458632601,-515.71559737,0.00017411,2]
[393315717,1762458632613,-2172.30999241,0.00017411,2]
[393315718,1762458632624,-1650.0,0.00017411,2]
[393315719,1762458632636,-4289.63826768,0.00017411,2]
[393315720,1762458632669,-6474.60409997,0.00017411,2]
[393315721,1762458632681,-13998.37791035,0.00017411,2]
[393315722,1762458632693,-5207.02539024,0.00017411,2]
[393315723,1762458632704,-323.44091325,0.00017411,2]
[393315724,1762458632737,-500.0,0.00017399,2]
[393315725,1762458632747,-975.08570537,0.00017411,2]
[393315726,1762458632781,-251.66367539,0.00017399,2]
[393315727,1762458632792,-259.9095766,0.00017399,2]
[393315728,1762458632801,-520.80569415,0.00017411,2]
[393315729,1762458632812,-5673.0,0.00017411,2]
[393315730,1762458637926,-500.0,0.00017399,2]
[393315731,1762458637935,-500.0,0.00017399,2]
[393315732,1762458637945,-30.04000014,0.00017399,2]
[393315733,1762458637956,-469.95999986,0.00017399,2]
[393315734,1762458637966,-500.0,0.00017399,2]
[393315735,1762458637976,-289.58392318,0.00017399,2]
[393315736,1762458637987,-210.41607682,0.00017399,2]
[393315737,1762458637997,-500.0,0.00017399,2]
[393315738,1762458638007,-500.0,0.00017399,2]
[393315739,1762458638017,-500.0,0.00017399,2]
[393315740,1762458638032,-500.0,0.00017399,2]
[393315741,1762458638042,-500.0,0.00017399,2]
[393315742,1762458638054,-500.0,0.00017399,2]
[393315743,1762458638064,-281.17477204,0.00017399,2]
[393315744,1762458638076,-218.82522796,0.00017399,2]
[393315745,1762458638086,-500.0,0.00017399,2]
[393315746,1762458638096,-500.0,0.00017399,2]
[393315747,1762458638109,-3258.66445849,0.00017411,2]
[393315748,1762458638121,-3062.37192109,0.00017411,2]
[393315749,1762458638136,-515.28220002,0.00017411,2]
[393315750,1762458638148,-5001.00546299,0.00017411,2]
[393315751,1762458638164,-1109.46875634,0.00017411,2]
[393315752,1762458638176,-6448.76289377,0.00017411,2]
[393315753,1762458638200,-1132.97187161,0.00017411,2]
[393315774,1762458639990,-2822.21558554,0.00017411,2]
[393315775,1762458640153,-33080.22125848,0.00017411,2]
[393315776,1762458640165,-128229.13700916,0.00017411,2]
[393315777,1762458640175,-1000.0,0.00017411,2]
[393315778,1762458640184,-329.46,0.00017436,2]
[393315779,1762458640194,-590.50730392,0.00017442,2]
[393315780,1762458640203,-1318.14283976,0.00017442,2]
[393315781,1762458640212,-200.0,0.00017444,2]
[393315782,1762458640222,-250.0,0.00017462,2]
[393315783,1762458640232,-500.0,0.00017473,2]
[393315784,1762458640242,-500.0,0.00017473,2]
[393315785,1762458640251,-500.0,0.00017473,2]
[393315786,1762458640261,-500.0,0.00017473,2]
[393315787,1762458640270,-500.0,0.00017473,2]
[393315788,1762458640279,-500.0,0.00017473,2]
[393315789,1762458640288,-500.0,0.00017473,2]
[393315790,1762458640299,-500.0,0.00017473,2]
[393315791,1762458640309,-500.0,0.00017499,2]
[393315792,1762458640319,-1600.0,0.000175,6]
[393315793,1762458640328,-590.50730392,0.00017507,2]
[393315794,1762458640338,-1318.14283976,0.00017507,2]
[393315795,1762458640348,-532.29,0.0001751,2]
[393315796,1762458640359,-532.29,0.0001751,2]
[393315797,1762458640368,-500.0,0.0001751,2]
[393315798,1762458640378,-500.0,0.0001751,2]
[393315799,1762458640387,-500.0,0.0001751,2]
[393315800,1762458640397,-500.0,0.0001751,2]
[393315801,1762458640407,-500.0,0.0001751,2]
[393315802,1762458640417,-500.0,0.0001751,2]
[393315804,1762458640427,-640.49374867,0.0001751,2]
[393315805,1762458640436,-477.87911524,0.00017561,2]
[393315806,1762458640445,-524.89,0.00017572,2]
[393315807,1762458640455,-590.50730392,0.00017573,2]
[393315808,1762458640464,-1318.14283976,0.00017573,2]
[393315809,1762458640474,-1000.0,0.000176,2]
[393315810,1762458640484,-1600.0,0.000176,6]
[393315811,1762458640494,-166.66,0.00017619,2]
[393315812,1762458640504,-3865.0,0.00017637,2]
[393315813,1762458640514,-590.50730392,0.00017638,2]
[393315814,1762458640524,-1318.14283976,0.00017638,2]
[393315815,1762458640535,-283.39,0.00017683,2]
[393315816,1762458640545,-351.0,0.00017683,2]
[393315817,1762458640556,-893.73840764,0.00017687,2]
[393315818,1762458640566,-1600.0,0.000177,6]
[393315819,1762458640576,-590.50730392,0.00017704,2]
[393315820,1762458640587,-1318.14283976,0.00017704,2]
[393315821,1762458640596,-176.91,0.00017705,2]
[393315822,1762458640610,-169.04,0.00017706,2]
[393315823,1762458640621,-176.91,0.00017706,2]
[393315824,1762458640632,-176.91,0.00017706,2]
[393315825,1762458640642,-169.04,0.00017706,2]
[393315826,1762458640652,-549.16,0.00017709,2]
[393315827,1762458640662,-6786.09,0.00017728,2]
[393315828,1762458640671,-221.80400124,0.0001774,2]
[393315829,1762458640681,-5000.0,0.00017747,2]
[393315830,1762458640690,-590.50730392,0.00017769,2]
[393315831,1762458640700,-1318.14283976,0.00017769,2]
[393315832,1762458640710,-300.0,0.00017781,2]
[393315833,1762458640719,-1000.0,0.000178,2]
[393315834,1762458640729,-1600.0,0.000178,6]
[393315835,1762458640738,-169.04,0.00017808,2]
[393315836,1762458640748,-169.04,0.00017808,2]
[393315837,1762458640757,-169.04,0.00017808,2]
[393315838,1762458640767,-169.04,0.00017808,2]
[393315839,1762458640776,-338.08,0.00017808,2]
[393315840,1762458640785,-169.04,0.00017808,2]
[393315841,1762458640794,-169.04,0.00017808,2]
[393315842,1762458640804,-169.04,0.00017808,2]
[393315843,1762458640813,-2500.0,0.00017812,3]
[393315844,1762458640822,-2500.0,0.00017821,3]
[393315845,1762458640831,-477.87911524,0.00017829,2]
[393315846,1762458640840,-2500.0,0.0001783,3]
[393315847,1762458640849,-590.50730392,0.00017835,2]
[393315848,1762458640862,-1318.14283976,0.00017835,2]
[393315849,1762458640871,-2500.0,0.00017847,3]
[393315850,1762458640880,-1511.645,0.00017851,2]
[393315851,1762458640889,-2500.0,0.00017856,3]
[393315852,1762458640899,-2500.0,0.00017865,3]
[393315853,1762458640909,-2500.0,0.00017874,3]
[393315854,1762458640918,-2500.0,0.00017882,3]
[393315855,1762458640927,-2500.0,0.00017891,3]
[393315856,1762458640937,-151.0,0.00017897,2]
[393315857,1762458640947,-532.29,0.00017899,2]
[393315858,1762458640956,-2500.0,0.000179,3]
[393315859,1762458640965,-477.87911524,0.000179,3]
[393315860,1762458640975,-1000.0,0.000179,2]
[393315861,1762458640984,-590.50730392,0.000179,2]
[393315862,1762458640994,-2000.0,0.000179,6]
[393315863,1762458641003,-187.86737324,0.000179,2]
[393315864,1762458641012,-1318.14283976,0.000179,2]
[393315865,1762458641023,-351.0,0.00017908,2]
[393315866,1762458641033,-500.0,0.00017917,2]
[393315867,1762458641042,-500.0,0.00017917,2]
[393315868,1762458641051,-150.0,0.00017917,2]
[393315869,1762458641061,-500.0,0.00017917,2]
[393315870,1762458641071,-250.0,0.00017917,2]
[393315871,1762458641081,-200.0,0.00017917,2]
[393315872,1762458641090,-200.0,0.00017917,2]
[393315873,1762458641101,-150.0,0.00017917,2]
[393315874,1762458641112,-500.0,0.00017917,2]
[393315875,1762458641122,-1431.74,0.00017952,2]
[393315876,1762458641131,-607.0,0.00017952,2]
[393315877,1762458641140,-574.0,0.00017952,2]
[393315878,1762458641150,-3423.0,0.00017952,2]
[393315879,1762458641160,-820.0,0.00017952,2]
[393315880,1762458641169,-1596.0,0.00017952,2]
[393315881,1762458641179,-812.0,0.00017952,2]
[393315882,1762458641189,-1273.0,0.00017952,2]
[393315883,1762458641198,-6475.0,0.00017952,2]
[393315884,1762458641207,-6658.0,0.00017952,2]
[393315885,1762458641215,-674.231,0.00017952,2]
[393315886,1762458641225,-2141.0,0.00017952,2]
[393315887,1762458641234,-283.39,0.00017957,2]
[393315888,1762458641243,-500.0,0.00017973,2]
[393315889,1762458641252,-500.0,0.00017973,2]
[393315890,1762458641262,-500.0,0.00017973,2]
[393315891,1762458641271,-231.42602229,0.00017973,2]
[393315892,1762458641280,-500.0,0.00017973,2]
[393315893,1762458641290,-500.0,0.00017973,2]
[393315894,1762458641299,-363.10933845,0.00017973,2]